bitfinex-derivatives/quotes_BTCF0:USTF0_20250922
["timestamp","ask_amount","ask_price","bid_price","bid_amount"]
[1758521091702,0.08731201,112540.0,112530.0,0.0004]
[1758521091905,0.0001,112540.0,112530.0,0.3388072]
[1758521092100,0.0001,112540.0,112530.0,0.3392072]
[1758521092410,0.0001,112570.0,112530.0,0.73322583]
[1758521092615,0.0001,112580.0,112560.0,0.35002998]
[1758521092809,0.0001,112600.0,112530.0,0.0004]
[1758521093006,0.01663823,112580.0,112520.0,0.35002998]
[1758521093208,0.01663823,112580.0,112570.0,0.0887757]
[1758521093209,0.0001,112580.0,112570.0,0.0887757]
[1758521093503,0.02461359,112610.0,112570.0,0.0887744]
[1758521093704,0.02451359,112610.0,112560.0,0.0887831]
[1758521093905,6.579e-05,112600.0,112560.0,0.0887831]
[1758521094205,0.18304414,112610.0,112530.0,0.0004]
[1758521094408,0.18304414,112610.0,112510.0,0.0001]
[1758521094409,0.00534427,112570.0,112510.0,0.0001]
[1758521094612,0.0001,112570.0,112560.0,0.0887835]
[1758521094809,6.579e-05,112590.0,112530.0,0.0004]
[1758521095009,0.00534427,112570.0,112550.0,0.0887849]
[1758521095208,0.00534427,112590.0,112540.0,0.4439912]
[1758521095515,0.08994503,112610.0,112590.0,0.088759]
[1758521095713,0.00534427,112600.0,112580.0,0.0887663]
[1758521096006,0.00534427,112600.0,112590.0,0.0887599]
[1758521096208,0.00534427,112600.0,112560.0,0.444018]
[1758521096414,0.00534427,112590.0,112580.0,0.0887613]
[1758521096610,0.00534427,112580.0,112570.0,0.0008]
[1758521096809,0.00534427,112580.0,112570.0,0.0895757]
[1758521097013,0.08949141,112610.0,112580.0,0.0887605]
[1758521097314,1.89438645,112640.0,112580.0,0.0887657]
[1758521097612,1.8725252,112640.0,112580.0,0.4438392]
[1758521097914,6.579e-05,112620.0,112570.0,0.4442732]
[1758521098110,6.579e-05,112610.0,112570.0,0.0004]
[1758521098308,1.8726252,112640.0,112570.0,0.0004]
[1758521098309,2.09290384,112640.0,112570.0,0.0004]
[1758521098509,6.579e-05,112600.0,112570.0,0.0004]
[1758521098816,6.579e-05,112600.0,112560.0,1.5001]
[1758521099008,0.0887367,112620.0,112570.0,0.0004]
[1758521099009,6.579e-05,112590.0,112570.0,0.0004]
[1758521099311,0.15938122,112620.0,112560.0,0.0001]
[1758521099312,6.579e-05,112580.0,112560.0,0.0001]
[1758521099507,0.1583331,112600.0,112570.0,0.0004]
[1758521099812,6.579e-05,112570.0,112560.0,0.0001]
[1758521100015,6.579e-05,112570.0,112550.0,0.0001]
[1758521100204,0.06958,112600.0,112550.0,0.0001]
[1758521100409,0.06958,112600.0,112560.0,0.0001]
[1758521100614,6.579e-05,112580.0,112560.0,0.0001]
[1758521101005,0.06958,112600.0,112560.0,0.0001]
[1758521101217,0.0887736,112580.0,112560.0,0.0001]
[1758521101417,6.579e-05,112570.0,112560.0,0.0001]
[1758521101620,0.06957549,112580.0,112560.0,0.0004]
[1758521101914,0.07074322,112620.0,112570.0,0.25]
[1758521102118,0.02070645,112640.0,112570.0,0.25]
[1758521102308,0.0001,112650.0,112620.0,0.35002998]
[1758521102615,0.00673871,112670.0,112620.0,0.55652628]
[1758521102815,0.00673871,112670.0,112660.0,0.35002998]
[1758521103018,0.00673871,112670.0,112660.0,0.60002998]
[1758521103217,0.00673871,112670.0,112660.0,0.35002998]
[1758521103514,0.00673871,112670.0,112650.0,0.35002998]
[1758521103814,0.0001,112710.0,112660.0,0.48366863]
[1758521104017,0.00675552,112730.0,112660.0,0.0004]
[1758521104217,6.579e-05,112720.0,112680.0,0.35002998]
[1758521104415,6.579e-05,112720.0,112660.0,0.13363865]
[1758521104624,0.00665552,112730.0,112680.0,0.35002998]
[1758521104808,0.00665552,112730.0,112660.0,0.13356085]
[1758521105008,0.00665552,112730.0,112660.0,0.0720417]
[1758521105208,0.00665552,112730.0,112720.0,0.0886575]
[1758521105409,0.00672131,112730.0,112680.0,0.4434396]
[1758521105719,0.00672131,112730.0,112720.0,0.43868748]
[1758521105720,0.00665552,112730.0,112720.0,0.43868748]
[1758521106109,0.00417552,112730.0,112720.0,1.5886575]
[1758521106313,0.00417552,112730.0,112720.0,1.8386575]
[1758521106516,0.0001,112770.0,112750.0,0.0886327]
[1758521106727,0.0001,112770.0,112720.0,2.54331138]
[1758521106728,0.07116766,112770.0,112720.0,1.5]
[1758521106919,2.65767024,112800.0,112720.0,1.5]
[1758521106920,6.579e-05,112740.0,112720.0,1.5]
[1758521107113,0.13116176,112780.0,112720.0,0.0886568]
[1758521107314,6.579e-05,112730.0,112720.0,0.0886568]
[1758521107509,6.579e-05,112730.0,112670.0,1.9597742]
[1758521107725,0.13045677,112740.0,112720.0,0.0004]
[1758521107919,0.06968,112750.0,112720.0,0.0004]
[1758521107920,6.579e-05,112730.0,112720.0,0.0004]
[1758521108121,6.579e-05,112730.0,112700.0,0.0886731]
[1758521108310,6.579e-05,112720.0,112690.0,0.35002998]
[1758521108511,0.0001,112750.0,112700.0,0.07084852]
[1758521108716,0.0001,112770.0,112700.0,0.07084852]
[1758521109012,0.0886185,112770.0,112700.0,0.07084852]
[1758521109212,0.13033597,112780.0,112700.0,0.0008]
[1758521109422,6.579e-05,112730.0,112700.0,0.35002998]
[1758521109621,0.0001,112760.0,112700.0,0.35042998]
[1758521109819,0.0001,112780.0,112700.0,0.13285009]
[1758521110017,6.579e-05,112740.0,112700.0,0.35042998]
[1758521110520,0.07151475,112740.0,112700.0,0.35002998]
[1758521110715,6.579e-05,112730.0,112700.0,0.35042998]
[1758521110917,0.0001,112740.0,112700.0,0.35042998]
[1758521111118,0.0001,112730.0,112700.0,0.13306601]
[1758521111319,0.0001,112720.0,112700.0,0.35042998]
[1758521111622,0.0001,112720.0,112700.0,0.35002998]
[1758521111813,0.0001,112760.0,112700.0,0.48341661]
[1758521112018,0.0001,112780.0,112730.0,0.35002998]
[1758521112218,0.02732146,112790.0,112730.0,0.35002998]
[1758521112419,0.10293298,112780.0,112700.0,0.0004]
[1758521112723,0.21895734,112790.0,112700.0,0.35042998]
[1758521113023,0.0886244,112770.0,112700.0,0.35002998]
[1758521113221,0.0886304,112760.0,112700.0,0.35042998]
[1758521113522,6.579e-05,112710.0,112670.0,0.0181042]
[1758521113724,0.088743,112740.0,112700.0,0.0004]
[1758521114017,6.579e-05,112720.0,112680.0,1.85002998]
[1758521114229,0.0001,112750.0,112700.0,0.0004]
[1758521114418,6.579e-05,112730.0,112700.0,0.0004]
[1758521114819,0.0001,112760.0,112700.0,0.35042998]
[1758521115025,6.579e-05,112750.0,112700.0,0.35042998]
[1758521115227,0.0001,112770.0,112700.0,0.35042998]
[1758521115418,6.579e-05,112750.0,112730.0,0.35002998]
[1758521116027,0.07008924,112760.0,112730.0,0.66927978]
[1758521116218,0.02742146,112790.0,112750.0,0.4431699]
[1758521116421,0.02732146,112790.0,112750.0,0.0886287]
[1758521116621,6.579e-05,112760.0,112740.0,0.088641]
[1758521116819,0.02732146,112790.0,112730.0,0.35002998]
[1758521117022,0.06706,112750.0,112740.0,0.0004]
[1758521117423,0.15025757,112790.0,112740.0,0.0886419]
[1758521117728,0.01574497,112790.0,112740.0,0.4436044]
[1758521118031,0.0886167,112780.0,112740.0,0.0004]
[1758521118224,6.579e-05,112750.0,112740.0,0.0004]
[1758521118431,0.06943788,112750.0,112740.0,0.0886419]
[1758521118618,6.579e-05,112750.0,112740.0,0.0890419]
[1758521119020,0.14629511,112790.0,112750.0,0.0886287]
[1758521119220,0.14619511,112790.0,112750.0,0.0886287]
[1758521119422,6.579e-05,112760.0,112740.0,0.0890406]
[1758521119619,0.06976312,112760.0,112750.0,0.0886327]
[1758521119820,0.14619511,112790.0,112750.0,0.0886327]
[1758521120021,0.01574497,112790.0,112760.0,0.0886233]
[1758521120230,0.23421491,112790.0,112730.0,0.0886426]
[1758521120530,0.23421491,112790.0,112740.0,0.0886407]
[1758521120531,0.17573651,112790.0,112740.0,0.0886407]
[1758521121024,6.579e-05,112750.0,112670.0,0.4647879]
[1758521121228,0.0886495,112730.0,112720.0,0.00073421]
[1758521121426,0.16724712,112750.0,112690.0,0.0886802]
[1758521121739,0.06706,112750.0,112720.0,0.0004]
[1758521121926,0.1556955,112750.0,112720.0,0.0004]
[1758521122129,0.0886421,112740.0,112720.0,0.0004]
[1758521122322,0.0886495,112730.0,112700.0,0.0008]
[1758521122630,0.22353319,112730.0,112700.0,0.0004]
[1758521122932,0.0886653,112710.0,112700.0,0.0004]
[1758521123120,0.1557335,112700.0,112670.0,0.0189042]
[1758521123317,0.06706,112700.0,112670.0,0.0189042]
[1758521123520,0.06706,112700.0,112680.0,0.0886886]
[1758521123726,0.0173231,112730.0,112680.0,0.0886886]
[1758521123917,1.86868,112740.0,112680.0,0.0886868]
[1758521124122,1.86868,112740.0,112640.0,0.01785875]
[1758521124123,0.4432794,112720.0,112640.0,0.01785875]
[1758521124322,0.0886904,112680.0,112630.0,0.0887265]
[1758521124530,0.06938,112700.0,112650.0,0.0887046]
[1758521124823,0.06938,112700.0,112640.0,0.4435942]
[1758521124824,0.06928,112700.0,112640.0,0.4435942]
[1758521125019,0.0001,112720.0,112660.0,0.79354558]
[1758521125232,0.01749577,112730.0,112710.0,0.0886591]
[1758521125432,0.01749577,112730.0,112670.0,0.35002998]
[1758521125623,0.01749577,112730.0,112670.0,0.79350698]
[1758521125927,0.01749577,112730.0,112680.0,0.4434458]
[1758521126230,0.01749577,112730.0,112670.0,0.79390388]
[1758521126426,0.01749577,112730.0,112690.0,0.4434048]
[1758521126627,0.02086945,112760.0,112720.0,0.4432868]
[1758521126830,0.02086945,112760.0,112740.0,0.0886353]
[1758521126831,0.02076945,112760.0,112740.0,0.0886353]
[1758521127123,0.03857884,112760.0,112750.0,0.0886337]
[1758521127526,0.02076945,112760.0,112750.0,0.3386337]
[1758521128028,0.02097153,112780.0,112770.0,0.0886183]
[1758521128029,0.01718039,112780.0,112770.0,0.0886183]
[1758521128228,0.0001,112820.0,112770.0,0.0886183]
[1758521128428,0.0885733,112830.0,112770.0,0.3386183]
[1758521128624,0.01788163,112830.0,112750.0,0.43865618]
[1758521128924,0.18103538,112830.0,112770.0,0.088617]
[1758521129123,0.13424676,112840.0,112750.0,0.4435551]
[1758521129330,0.0885787,112830.0,112760.0,0.0886203]
[1758521129532,0.0885787,112830.0,112770.0,0.0886172]
[1758521129829,0.06928,112800.0,112750.0,0.0004]
[1758521130029,0.06928,112800.0,112750.0,0.0886264]
[1758521130231,0.2051024,112800.0,112770.0,0.0004]
[1758521130430,0.0887029,112790.0,112770.0,0.0004]
[1758521130634,0.2501,112790.0,112770.0,0.0004]
[1758521130825,0.25,112780.0,112770.0,0.0004]
[1758521131022,0.46961327,112780.0,112740.0,0.0001]
[1758521131233,0.0886209,112770.0,112730.0,0.0008]
[1758521131436,0.93953239,112800.0,112740.0,0.0886419]
[1758521131635,0.0886027,112790.0,112740.0,0.0886419]
[1758521131836,0.07210551,112800.0,112790.0,0.0886026]
[1758521132037,0.02037828,112840.0,112800.0,0.088593]
[1758521132233,0.10884188,112840.0,112790.0,0.0886021]
[1758521132440,0.0885646,112840.0,112790.0,0.0885996]
[1758521132634,0.13561485,112840.0,112790.0,0.0004]
[1758521132840,0.0692419,112850.0,112820.0,0.0885785]
[1758521133136,0.0885407,112870.0,112820.0,0.0885762]
[1758521133431,0.0885477,112860.0,112790.0,0.0004]
[1758521133631,0.0886412,112870.0,112820.0,0.0885784]
[1758521133836,0.0700351,112870.0,112790.0,0.0004]
[1758521134133,0.06928,112850.0,112750.0,0.0008]
[1758521134334,0.0885696,112840.0,112750.0,0.35082998]
[1758521134635,0.0886651,112840.0,112750.0,0.35002998]
[1758521134839,0.0885723,112830.0,112750.0,0.35002998]
[1758521135040,0.0885808,112820.0,112760.0,0.35002998]
[1758521135335,0.0885878,112810.0,112760.0,0.35002998]
[1758521135536,0.0001,112840.0,112760.0,0.35002998]
[1758521135537,0.0886031,112790.0,112760.0,0.35002998]
[1758521135736,0.0886031,112790.0,112760.0,0.0004]
[1758521136033,0.0886205,112770.0,112730.0,2.21818998]
[1758521136230,0.0886205,112770.0,112760.0,0.0004]
[1758521136531,0.08864,112750.0,112710.0,0.01806836]
[1758521136745,0.0886199,112770.0,112730.0,0.0008]
[1758521138341,0.17794324,112780.0,112730.0,0.0004]
[1758521138540,0.08933044,112780.0,112750.0,0.35002998]
[1758521138739,0.0886894,112810.0,112750.0,0.35002998]
[1758521138930,0.0886771,112830.0,112750.0,0.35002998]
[1758521139134,0.0885792,112820.0,112770.0,0.0886151]
[1758521139333,0.0001,112840.0,112780.0,0.43863898]
[1758521139544,0.10632547,112840.0,112780.0,0.08861]
[1758521139736,1.93728,112850.0,112810.0,0.0885865]
[1758521139941,1.93728,112850.0,112810.0,0.0885854]
[1758521140141,2.02604738,112850.0,112800.0,0.0885932]
[1758521140329,2.02604738,112850.0,112780.0,0.0004]
[1758521140530,0.06146268,112840.0,112790.0,0.0886]
[1758521140734,2.21190095,112850.0,112800.0,0.0885923]
[1758521140937,2.11460508,112850.0,112800.0,0.0885923]
[1758521141138,0.0885712,112830.0,112780.0,0.0890088]
[1758521141331,0.0885658,112840.0,112760.0,0.4431227]
[1758521141542,2.11470528,112850.0,112800.0,0.088594]
[1758521141744,2.02604738,112850.0,112780.0,0.35002998]
[1758521142045,0.09576762,112840.0,112800.0,0.0004]
[1758521142243,2.11460358,112850.0,112800.0,0.0004]
[1758521142544,0.0885768,112830.0,112740.0,0.35002998]
[1758521142740,0.0885817,112820.0,112800.0,0.0004]
[1758521142942,0.18687043,112830.0,112740.0,0.35002998]
[1758521143142,0.06928,112800.0,112790.0,0.0004]
[1758521143636,0.09632791,112830.0,112790.0,0.2508]
[1758521143838,0.0885704,112840.0,112790.0,0.0008]
[1758521144143,0.09437015,112840.0,112790.0,0.0008]
[1758521144645,2.11460338,112850.0,112790.0,0.0008]
[1758521144838,2.02604738,112850.0,112790.0,0.0008]
[1758521145044,0.0885738,112830.0,112770.0,0.0016]
[1758521145241,0.0885792,112820.0,112770.0,0.0016]
[1758521145441,0.06928,112800.0,112770.0,0.0016]
[1758521145638,0.06928,112800.0,112720.0,0.35002998]
[1758521146046,0.06928,112800.0,112770.0,0.0004]
[1758521146245,0.06928,112800.0,112670.0,0.4434673]
[1758521146442,0.06938,112800.0,112770.0,0.0004]
[1758521146644,0.06928,112800.0,112770.0,0.0004]
[1758521147338,0.06928,112800.0,112710.0,0.01806836]
[1758521147543,0.0886038,112790.0,112710.0,0.01806836]
[1758521147741,0.06938,112800.0,112770.0,0.0004]
[1758521147941,0.06928,112800.0,112770.0,0.0004]
[1758521148748,0.0886073,112790.0,112770.0,0.0004]
[1758521148947,0.25,112790.0,112710.0,0.01806836]
[1758521149141,0.06928,112760.0,112740.0,0.0008]
[1758521149344,0.06928,112760.0,112710.0,0.01806836]
[1758521149752,0.0001,112780.0,112740.0,0.0004]
[1758521150048,0.0001,112750.0,112740.0,0.0004]
[1758521151546,0.0001,112750.0,112710.0,0.3485596]
[1758521151755,0.0001,112740.0,112710.0,0.0008]
[1758521152053,0.0001,112770.0,112720.0,0.3484596]
[1758521152253,0.0001,112790.0,112740.0,0.3484596]
[1758521152548,0.06928,112800.0,112740.0,0.3484596]
[1758521152947,0.0001,112820.0,112760.0,0.3484596]
[1758521153146,0.088571,112830.0,112760.0,0.3484596]
[1758521153441,0.0001,112840.0,112780.0,0.3484596]
[1758521153745,2.12832072,112850.0,112780.0,0.3484596]
[1758521153947,0.0885633,112840.0,112760.0,0.3484596]
[1758521154350,0.0885646,112840.0,112760.0,0.0004]
[1758521154555,0.09632585,112840.0,112780.0,0.3484596]
[1758521154754,0.17186462,112850.0,112760.0,0.0004]
[1758521154755,0.26032042,112850.0,112760.0,0.0004]
[1758521154953,0.17186462,112850.0,112780.0,0.3484596]
[1758521155153,0.17176462,112850.0,112760.0,0.0004]
[1758521155355,0.17186462,112850.0,112760.0,0.3484596]
[1758521155548,0.0885635,112840.0,112760.0,0.3488596]
[1758521155755,0.35458135,112850.0,112760.0,0.3488596]
[1758521155948,0.26042102,112850.0,112760.0,0.3488596]
[1758521156149,0.0885638,112840.0,112760.0,0.3488596]
[1758521156550,0.26042152,112850.0,112760.0,0.3488596]
[1758521156746,0.0885648,112840.0,112760.0,0.0004]
[1758521156950,0.0885643,112840.0,112740.0,0.3484596]
[1758521157254,0.53452399,112840.0,112760.0,0.0004]
[1758521157453,0.26042062,112850.0,112760.0,0.3484596]
[1758521157649,0.17186462,112850.0,112760.0,0.3488596]
[1758521157857,0.17186462,112850.0,112760.0,0.0004]
[1758521158256,0.17186462,112850.0,112770.0,0.3484596]
[1758521158553,0.17176462,112850.0,112770.0,0.3484596]
[1758521160561,0.10248462,112850.0,112800.0,0.3484596]
[1758521160759,1.8681,112870.0,112790.0,0.3484596]
[1758521161061,1.89895312,112870.0,112790.0,0.3484596]
[1758521161447,1.89895312,112870.0,112810.0,0.3484596]
[1758521161654,1.97041194,112870.0,112810.0,0.3484596]
[1758521162346,0.10241194,112870.0,112830.0,0.3484596]
[1758521162547,0.00640594,112910.0,112840.0,0.3484596]
[1758521162548,0.0001,112900.0,112840.0,0.3484596]
[1758521162755,0.09491614,112910.0,112830.0,1.8484596]
[1758521162957,0.0885188,112900.0,112830.0,1.8484596]
[1758521163260,0.0885188,112900.0,112830.0,1.5]
[1758521163452,0.1548241,112880.0,112830.0,1.5004]
[1758521163647,0.0885566,112850.0,112830.0,0.0004]
[1758521163854,0.06629,112840.0,112770.0,0.02090422]
[1758521164049,0.06629,112840.0,112830.0,0.0004]
[1758521164252,0.088543,112870.0,112830.0,0.0004]
[1758521164449,0.06629,112880.0,112830.0,0.0004]
[1758521164656,0.06629,112840.0,112800.0,0.0008]
[1758521164959,0.06629,112840.0,112780.0,0.3484596]
[1758521165148,0.06629,112840.0,112800.0,0.0004]
[1758521165349,0.088578,112830.0,112800.0,0.0004]
[1758521165547,0.0885858,112820.0,112800.0,0.0004]
[1758521165959,0.0885746,112830.0,112760.0,0.3484596]
[1758521166153,0.22425869,112840.0,112800.0,0.0004]
[1758521166360,0.06930259,112840.0,112800.0,0.0004]
[1758521166660,1.86732,112860.0,112800.0,0.5988596]
[1758521166958,1.9558701,112860.0,112800.0,0.0004]
[1758521167150,1.86732,112860.0,112800.0,0.0004]
[1758521167354,1.86732,112860.0,112770.0,0.0008]
[1758521167552,1.9559694,112860.0,112800.0,0.3488596]
[1758521167758,1.9558695,112860.0,112800.0,0.0004]
[1758521167958,0.0885569,112850.0,112800.0,0.0004]
[1758521168157,0.088559,112850.0,112770.0,0.42156875]
[1758521168462,2.02678471,112860.0,112790.0,0.3484596]
[1758521168662,0.0885578,112850.0,112760.0,1.86728]
[1758521168867,0.0885729,112830.0,112770.0,0.0004]
[1758521169358,0.07254688,112830.0,112780.0,0.3484596]
[1758521169558,0.06629,112840.0,112780.0,0.3484596]
[1758521169757,0.06629,112840.0,112780.0,0.3488596]
[1758521169962,0.0885655,112840.0,112780.0,0.3488596]
[1758521170259,0.0885603,112850.0,112780.0,0.3488596]
[1758521170460,0.0885571,112850.0,112790.0,0.3484596]
[1758521170659,0.0001,112830.0,112780.0,0.3489596]
[1758521170856,0.0001,112810.0,112780.0,0.3488596]
[1758521171057,0.0001,112800.0,112780.0,0.0004]
[1758521171354,0.0001,112840.0,112790.0,0.3484596]
[1758521171562,0.0885573,112850.0,112780.0,0.0004]
[1758521171763,0.16009985,112850.0,112780.0,0.0004]
[1758521172058,0.07154225,112850.0,112790.0,0.3484596]
[1758521172262,0.0885573,112850.0,112790.0,0.3484596]
[1758521172457,0.08857,112840.0,112780.0,0.3484596]
[1758521172760,0.06367,112830.0,112790.0,0.0004]
[1758521172959,0.22310787,112830.0,112760.0,1.86728]
[1758521173256,0.16138087,112830.0,112770.0,0.3492596]
[1758521173457,0.0001,112850.0,112790.0,0.3484596]
[1758521173664,0.0885582,112850.0,112810.0,0.3484596]
[1758521173857,0.06911949,112850.0,112790.0,1.5]
[1758521174062,0.088562,112850.0,112790.0,1.5]
[1758521174256,0.0885654,112840.0,112790.0,1.5]
[1758521174457,0.1523223,112860.0,112800.0,0.1]
[1758521174754,0.4428243,112840.0,112800.0,0.1]
[1758521175062,0.0885842,112820.0,112800.0,0.0004]
[1758521175265,0.0885892,112810.0,112780.0,1.5886122]
[1758521175467,0.0885835,112820.0,112800.0,0.0004]
[1758521175655,0.1522479,112830.0,112800.0,0.0004]
[1758521175860,0.0885779,112830.0,112800.0,0.0004]
[1758521176062,0.5950796,112860.0,112800.0,0.0004]
[1758521176063,0.0885693,112840.0,112800.0,0.0889925]
[1758521176363,0.0885739,112830.0,112800.0,0.0004]
[1758521176860,0.1523204,112860.0,112800.0,0.2504]
[1758521177062,0.22175878,112860.0,112820.0,0.0885772]
[1758521177258,0.15808878,112860.0,112820.0,0.0885772]
[1758521177464,0.0885665,112840.0,112800.0,0.0889948]
[1758521177759,0.06367,112860.0,112800.0,0.0889968]
[1758521177964,0.0885702,112840.0,112800.0,0.0885955]
[1758521178162,0.06367,112860.0,112810.0,0.0885849]
[1758521178362,0.06367,112860.0,112800.0,0.8800292]
[1758521178665,0.0885431,112870.0,112830.0,0.0885676]
[1758521178865,0.0885431,112870.0,112840.0,0.0885656]
[1758521179166,0.088543,112870.0,112840.0,0.088562]
[1758521179566,0.1548248,112880.0,112850.0,0.0885554]
[1758521179958,0.0885425,112870.0,112840.0,0.0885609]
[1758521180361,0.088567,112840.0,112780.0,1.5886099]
[1758521180560,0.06377,112860.0,112840.0,0.0004]
[1758521180862,0.15996205,112870.0,112840.0,0.0889661]
[1758521181065,0.0885458,112870.0,112840.0,0.0889663]
[1758521181365,0.0885511,112860.0,112840.0,0.0004]
[1758521181774,0.0885586,112850.0,112840.0,0.0004]
[1758521182061,0.0885666,112840.0,112810.0,0.0885862]
[1758521182268,0.088572,112840.0,112820.0,0.0008]
[1758521182566,0.088572,112840.0,112790.0,0.4370633]
[1758521182760,0.06377,112860.0,112820.0,0.0004]
[1758521182967,0.088551,112860.0,112830.0,0.0885705]
[1758521183368,0.0885597,112850.0,112820.0,0.0885821]
[1758521183673,0.088572,112840.0,112830.0,0.0004]
[1758521183856,0.0885664,112840.0,112810.0,0.0885869]
[1758521184059,0.0885664,112840.0,112830.0,0.0004]
[1758521184272,0.0885624,112850.0,112830.0,0.0004]
[1758521184567,0.0885664,112840.0,112830.0,0.0004]
[1758521184962,0.3385664,112840.0,112830.0,0.0004]
[1758521185173,0.40959072,112840.0,112830.0,0.0004]
[1758521185360,0.07102432,112840.0,112820.0,0.088582]
[1758521185561,0.0885668,112840.0,112830.0,0.0004]
[1758521185871,0.0885614,112850.0,112830.0,0.0004]
[1758521186066,0.152224,112860.0,112830.0,0.0004]
[1758521186266,0.0885664,112840.0,112830.0,0.0004]
[1758521186469,0.0885847,112820.0,112780.0,0.0886102]
[1758521186668,0.0885712,112840.0,112800.0,0.0893976]
[1758521186863,0.0885712,112840.0,112810.0,0.0885898]
[1758521187071,0.0885673,112840.0,112810.0,0.0885837]
[1758521187369,0.0885673,112840.0,112800.0,0.0008]
[1758521187370,0.0885616,112850.0,112820.0,0.0885774]
[1758521187567,0.0885678,112840.0,112820.0,0.0885774]
[1758521187768,0.13378922,112860.0,112800.0,0.0893955]
[1758521187769,0.0885746,112830.0,112800.0,0.0893955]
[1758521188067,0.0885828,112820.0,112800.0,0.0004]
[1758521188264,0.0885692,112840.0,112810.0,0.0885884]
[1758521188470,0.0885668,112840.0,112810.0,0.0885884]
[1758521188668,0.0885618,112850.0,112820.0,0.0885817]
[1758521188869,0.0885673,112840.0,112810.0,0.0885874]
[1758521189465,0.0885673,112840.0,112810.0,0.0885872]
[1758521189671,0.13378922,112860.0,112800.0,0.0889947]
[1758521189869,0.0885882,112820.0,112790.0,0.0886026]
[1758521190069,0.0885882,112820.0,112800.0,0.0004]
[1758521190375,0.07217868,112820.0,112800.0,0.0889978]
[1758521190572,0.16076198,112820.0,112800.0,0.0004]
[1758521190771,0.07217868,112820.0,112800.0,0.0885937]
[1758521190968,0.0885902,112810.0,112800.0,0.0004]
[1758521191274,0.0649,112800.0,112780.0,0.0008]
[1758521191468,0.0649,112800.0,112750.0,0.10913771]
[1758521191469,0.0886106,112790.0,112750.0,0.10913771]
[1758521191669,0.0001,112780.0,112760.0,0.0008]
[1758521191968,0.0001,112780.0,112730.0,0.02065232]
[1758521191969,0.0649,112770.0,112730.0,0.02065232]
[1758521192175,0.0887294,112760.0,112750.0,0.0008]
[1758521192468,0.0886378,112750.0,112720.0,0.0001]
[1758521192670,0.1536451,112740.0,112730.0,0.0008]
[1758521192868,0.1536451,112740.0,112700.0,0.0001]
[1758521193059,0.1536451,112740.0,112710.0,0.0008]
[1758521193060,0.0001,112730.0,112710.0,0.0008]
[1758521193382,0.0001,112730.0,112710.0,0.0886659]
[1758521193571,0.0001,112730.0,112720.0,0.0886605]
[1758521193867,0.065,112770.0,112730.0,0.0886526]
[1758521194071,0.0649,112770.0,112740.0,0.0886426]
[1758521194267,0.08277627,112800.0,112730.0,0.443262]
[1758521194474,0.08267627,112800.0,112750.0,0.3484596]
[1758521194774,0.08267627,112800.0,112750.0,0.0886364]
[1758521194979,0.08267627,112800.0,112770.0,0.0886205]
[1758521195278,0.15491644,112800.0,112780.0,0.0886099]
[1758521195473,0.09001644,112800.0,112760.0,0.4431373]
[1758521195666,0.06291093,112800.0,112790.0,0.0886054]
[1758521195870,0.0649,112830.0,112800.0,0.0885934]
[1758521196070,1.88527541,112840.0,112790.0,0.0886051]
[1758521196270,1.88527541,112840.0,112770.0,0.3484596]
[1758521196577,0.0649,112830.0,112790.0,0.0886049]
[1758521196876,0.0649,112830.0,112800.0,0.0885957]
[1758521197074,0.13634865,112830.0,112810.0,0.0885895]
[1758521197369,0.15112633,112840.0,112810.0,0.0885895]
[1758521197580,0.01803541,112840.0,112820.0,0.088582]
[1758521197777,0.01803541,112840.0,112830.0,0.0885745]
[1758521198777,0.01803541,112840.0,112820.0,0.0885806]
[1758521198978,0.01803541,112840.0,112830.0,0.0889744]
[1758521199178,0.01803541,112840.0,112830.0,0.0004]
[1758521199478,0.08901724,112840.0,112830.0,0.0004]
[1758521199679,0.26803541,112840.0,112830.0,0.0004]
[1758521199881,0.26803541,112840.0,112820.0,0.0885792]
[1758521200069,0.01803541,112840.0,112810.0,0.08859]
[1758521200274,0.01803541,112840.0,112830.0,0.0004]
[1758521200578,0.01803541,112840.0,112830.0,0.0889744]
[1758521200779,0.01803541,112840.0,112800.0,0.7914435]
[1758521200973,0.01803541,112840.0,112830.0,0.0004]
[1758521201373,0.26803541,112840.0,112810.0,0.0885889]
[1758521201581,0.01803541,112840.0,112830.0,0.0004]
[1758521202080,0.08755777,112840.0,112820.0,0.0885818]
[1758521202275,0.01803541,112840.0,112830.0,0.0004]
[1758521202979,0.01803541,112840.0,112800.0,0.0885967]
[1758521202980,0.10660261,112840.0,112800.0,0.0885967]
[1758521203276,0.10660261,112840.0,112830.0,0.0004]
[1758521203478,0.1534744,112830.0,112790.0,0.088605]
[1758521203675,0.1534744,112830.0,112760.0,0.4447377]
[1758521203676,0.0649,112830.0,112820.0,0.0008]
[1758521203872,0.0649,112830.0,112810.0,0.0885866]
[1758521204073,0.01803541,112840.0,112820.0,0.0889746]
[1758521204877,0.08833704,112840.0,112820.0,0.0889746]
[1758521205080,0.08833704,112840.0,112830.0,0.0885733]
[1758521205276,0.08833704,112840.0,112820.0,0.0889791]
[1758521206080,0.08833704,112840.0,112820.0,0.0004]
[1758521206280,0.08833704,112840.0,112820.0,0.0885789]
[1758521206574,0.08833704,112840.0,112820.0,0.0004]
[1758521206779,0.08833704,112840.0,112830.0,0.0885733]
[1758521207183,0.08833704,112840.0,112820.0,0.0889784]
[1758521207685,0.08833704,112840.0,112830.0,0.0885734]
[1758521207877,0.01803541,112840.0,112830.0,0.0885734]
[1758521208281,0.01803541,112840.0,112830.0,0.3385734]
[1758521209587,0.26803541,112840.0,112820.0,0.0889771]
[1758521209777,0.01803541,112840.0,112820.0,0.0889771]
[1758521209978,0.10660181,112840.0,112810.0,0.0885878]
[1758521210180,0.10660181,112840.0,112820.0,0.0004]
[1758521210380,0.01803541,112840.0,112810.0,0.0885878]
[1758521210685,0.01803541,112840.0,112820.0,0.0004]
[1758521211181,0.01803541,112840.0,112830.0,0.0885741]
[1758521211873,0.01803541,112840.0,112820.0,0.0004]
[1758521211874,0.0886357,112880.0,112840.0,0.0885594]
[1758521212186,0.0886357,112880.0,112820.0,0.0004]
[1758521212187,0.0885509,112860.0,112820.0,0.0889786]
[1758521212380,0.0886509,112860.0,112830.0,0.0885728]
[1758521212580,0.0001,112850.0,112830.0,0.0885688]
[1758521212781,0.0001,112850.0,112840.0,0.0885662]
[1758521213087,0.088546,112870.0,112820.0,0.0004]
[1758521213088,0.0885457,112870.0,112820.0,0.0004]
[1758521213285,0.0885457,112870.0,112840.0,0.0885616]
[1758521213586,0.0885514,112860.0,112830.0,0.0885707]
[1758521214085,0.66749754,112890.0,112830.0,0.0004]
[1758521214284,0.088559,112850.0,112830.0,0.0004]
[1758521214485,0.0885684,112840.0,112810.0,0.0885867]